bitfinex/quotes_SOLUSD_20250330
["timestamp","ask_amount","ask_price","bid_price","bid_amount"]
[1743377502582,24.3084276,124.38,124.36,47.16110817]
[1743377504471,24.3084276,124.38,124.36,55.20210817]
[1743377504678,24.3084276,124.4,124.36,55.20210817]
[1743377504890,24.3084276,124.44,124.37,18.933972]
[1743377505074,24.3084276,124.44,124.37,66.09508017]
[1743377505273,24.3084276,124.44,124.38,0.28432314]
[1743377505472,24.3084276,124.45,124.4,18.933972]
[1743377505675,24.3084276,124.44,124.4,66.09508017]
[1743377506383,24.3084276,124.43,124.4,47.16110817]
[1743377506582,24.3084276,124.42,124.4,47.16110817]
[1743377506778,24.3084276,124.44,124.4,47.16110817]
[1743377507372,24.3084276,124.43,124.4,47.16110817]
[1743377507590,24.3084276,124.42,124.4,55.19910817]
[1743377507899,24.3084276,124.42,124.4,55.22960817]
[1743377508093,24.3084276,124.43,124.4,55.22960817]
[1743377511887,24.3084276,124.41,124.4,55.22960817]
[1743377512499,24.3084276,124.41,124.4,8.0685]
[1743377513204,24.3084276,124.43,124.4,0.03]
[1743377514701,24.3084276,124.45,124.4,18.963972]
[1743377515198,24.3084276,124.44,124.4,18.963972]
[1743377515582,24.3084276,124.44,124.41,8.0379]
[1743377516094,24.3084276,124.42,124.4,0.03]
[1743377516279,24.3084276,124.41,124.4,0.03]
[1743377519391,8.0356,124.45,124.4,0.03]
[1743377519599,24.3084276,124.42,124.4,0.03]
[1743377520500,24.3084276,124.41,124.4,0.03]
[1743377522198,51.13813803,124.41,124.4,0.03]
[1743377522404,18.933972,124.4,124.34,47.16110817]
[1743377522586,18.933972,124.4,124.32,146.3433]
[1743377522587,24.3084276,124.35,124.32,146.3433]
[1743377522789,24.3084276,124.33,124.31,47.16110817]
[1743377522988,24.3084276,124.38,124.3,0.03]
[1743377522989,24.3084276,124.32,124.3,0.03]
[1743377523704,24.3084276,124.33,124.3,8.0747]
[1743377523898,24.3084276,124.31,124.3,0.03]
[1743377524501,0.14216157,124.3,124.27,0.03]
[1743377524712,24.3084276,124.28,124.27,0.03]
[1743377524894,67.83515034,124.28,124.25,0.03]
[1743377525089,67.83515034,124.28,124.23,3.0018281]
[1743377525090,20.0,124.24,124.23,3.0018281]
[1743377525407,44.3084276,124.24,124.23,3.0018281]
[1743377526314,52.3573276,124.24,124.23,3.0018281]
[1743377526623,44.3084276,124.24,124.23,3.0018281]
[1743377526923,63.38456117,124.24,124.23,3.0018281]
[1743377527091,63.38456117,124.24,124.18,8.0527]
[1743377527285,24.3084276,124.22,124.18,8.0527]
[1743377527519,24.3084276,124.21,124.18,8.0527]
[1743377527715,24.3084276,124.2,124.17,239.5932]
[1743377527891,24.3084276,124.21,124.17,28.1868]
[1743377528092,24.3084276,124.23,124.17,28.1868]
[1743377528293,24.3084276,124.23,124.17,75.34790817]
[1743377528805,24.3084276,124.25,124.18,19.07613357]
[1743377529202,13.6165,124.3,124.19,0.14216157]
[1743377529203,24.3084276,124.26,124.19,0.14216157]
[1743377529393,24.3084276,124.26,124.2,26.473972]
[1743377530213,24.3084276,124.26,124.2,73.63508017]
[1743377530394,24.3084276,124.26,124.21,28.178]
[1743377530593,24.3084276,124.27,124.21,28.178]
[1743377531492,24.3084276,124.27,124.22,18.933972]
[1743377531693,24.3084276,124.27,124.22,66.09508017]
[1743377532622,24.3084276,124.26,124.23,8.0495]
[1743377532914,24.3084276,124.24,124.22,55.24110817]
[1743377533111,24.3084276,124.23,124.22,8.08]
[1743377533303,24.3084276,124.24,124.22,8.08]
[1743377533695,24.3084276,124.25,124.22,8.08]
[1743377533901,24.3084276,124.24,124.22,8.08]
[1743377534316,24.3084276,124.23,124.22,0.03]
[1743377535327,24.3084276,124.25,124.22,0.03]
[1743377535497,24.3084276,124.24,124.22,0.03]
[1743377535817,24.3084276,124.23,124.22,0.03]
[1743377536195,24.3084276,124.24,124.22,0.03]
[1743377536395,24.3084276,124.25,124.22,0.03]
[1743377537505,24.3084276,124.24,124.22,0.03]
[1743377539406,24.3084276,124.23,124.22,0.03]
[1743377541829,25.9837276,124.26,124.22,0.03]
[1743377542130,24.3084276,124.24,124.19,8.052]
[1743377542325,24.3084276,124.25,124.19,75.34350817]
[1743377543724,7.54,124.29,124.19,75.34350817]
[1743377543931,24.3084276,124.26,124.19,123.37420817]
[1743377544116,24.3084276,124.25,124.2,7.54]
[1743377544505,24.3084276,124.26,124.21,28.178]
[1743377544924,0.063,124.25,124.21,28.178]
[1743377545227,24.3714276,124.25,124.21,28.178]
[1743377545929,0.063,124.25,124.21,28.178]
[1743377547517,0.063,124.25,124.22,18.933972]
[1743377547726,0.063,124.25,124.22,66.09508017]
[1743377548625,0.063,124.25,124.23,8.0495]
[1743377549722,0.0001,124.25,124.24,18.933972]
[1743377549936,0.0001,124.25,124.24,204.67940331]
[1743377550726,0.0001,124.25,124.24,212.72830331]
[1743377550922,24.3084276,124.34,124.27,18.933972]
[1743377551129,6.0555,124.37,124.28,7.54]
[1743377551130,24.3084276,124.35,124.28,7.54]
[1743377551444,25.92337754,124.41,124.29,19.21829514]
[1743377551616,24.3084276,124.37,124.29,204.67940331]
[1743377551817,24.3084276,124.35,124.29,204.67940331]
[1743377552152,24.3084276,124.35,124.29,185.46110817]
[1743377552313,24.3084276,124.36,124.3,18.933972]
[1743377552512,24.3084276,124.36,124.3,66.09508017]
[1743377552713,24.3084276,124.34,124.3,55.20560817]
[1743377553939,32.3486276,124.38,124.3,55.20560817]
[1743377553940,24.3084276,124.35,124.3,55.20560817]
[1743377554336,24.3084276,124.36,124.3,55.20560817]
[1743377554543,24.3084276,124.34,124.3,75.31820817]
[1743377554838,24.3084276,124.38,124.3,75.31820817]
[1743377554839,24.3084276,124.35,124.3,75.31820817]
[1743377555044,24.3084276,124.34,124.3,55.20560817]
[1743377555245,24.3084276,124.31,124.27,47.16110817]
[1743377555541,24.3084276,124.3,124.27,47.16110817]
[1743377556143,24.3084276,124.33,124.28,18.79181043]
[1743377556310,24.3084276,124.34,124.28,65.9529186]
[1743377556937,24.3084276,124.33,124.28,65.9529186]
[1743377558114,7.663,124.36,124.28,65.9529186]
[1743377558115,24.3714276,124.36,124.29,35.7398]
[1743377558313,24.3714276,124.36,124.29,82.90090817]
[1743377558735,0.063,124.36,124.3,27.16139514]
[1743377559527,24.3714276,124.36,124.3,27.16139514]
[1743377559735,24.3084276,124.35,124.3,7.9431]
[1743377559932,24.3714276,124.36,124.3,18.933972]
[1743377560126,24.3714276,124.36,124.31,8.0444]
[1743377561027,0.063,124.36,124.31,28.1554]
[1743377561443,0.063,124.36,124.32,18.933972]
[1743377561646,0.063,124.36,124.32,66.09508017]
[1743377562314,0.063,124.36,124.33,28.1508]
[1743377562514,0.063,124.36,124.34,7.56]
[1743377563414,0.063,124.36,124.34,54.72110817]
[1743377563616,0.063,124.36,124.35,18.933972]
[1743377563816,0.063,124.36,124.35,66.09508017]
[1743377564336,0.063,124.36,124.35,74.13688017]
[1743377565352,0.063,124.36,124.35,55.20290817]
[1743377567533,0.063,124.36,124.34,7.56]
[1743377567534,0.063,124.36,124.34,8.0422]
[1743377568250,0.063,124.36,124.31,47.16110817]
[1743377568251,24.3084276,124.35,124.31,47.16110817]
[1743377568552,24.3714276,124.36,124.32,8.0437]
[1743377568740,0.063,124.36,124.32,8.0437]
[1743377569041,0.063,124.36,124.32,28.153]
[1743377571217,0.063,124.36,124.32,75.31410817]
[1743377573939,0.063,124.36,124.35,18.933972]
[1743377574142,0.063,124.36,124.35,73.61508017]
[1743377574518,0.0001,124.36,124.35,220.24120331]
[1743377575314,0.0001,124.36,124.35,219.95688017]
[1743377576243,0.0001,124.36,124.35,192.98110817]
[1743377576425,0.0001,124.36,124.35,54.68110817]
[1743377576630,0.0001,124.36,124.35,47.16110817]
[1743377577531,0.0001,124.36,124.35,55.20290817]
[1743377577939,0.0001,124.36,124.35,47.16110817]
[1743377580241,0.0001,124.36,124.32,185.46110817]
[1743377580439,24.3084276,124.33,124.32,47.16110817]
[1743377580643,24.3084276,124.33,124.29,287.30650817]
[1743377580855,24.3084276,124.33,124.29,279.26110817]
[1743377581028,24.3084276,124.33,124.29,287.30670817]
[1743377581429,24.3084276,124.33,124.29,55.20670817]
[1743377581826,24.3084276,124.34,124.29,55.20670817]
[1743377582033,24.3084276,124.33,124.29,55.20670817]
[1743377582551,24.3084276,124.32,124.29,47.16110817]
[1743377582951,24.3084276,124.33,124.29,47.16110817]
[1743377583456,32.3518276,124.33,124.29,47.16110817]
[1743377583644,24.3084276,124.31,124.29,47.16110817]
[1743377584357,25.9935276,124.34,124.29,55.20650817]
[1743377584542,24.3084276,124.33,124.29,55.20650817]
[1743377584932,24.3084276,124.34,124.29,55.20650817]
[1743377585437,24.3084276,124.33,124.29,47.16110817]
[1743377585652,24.3084276,124.34,124.29,47.16110817]
[1743377585853,24.3084276,124.33,124.29,47.16110817]
[1743377586270,0.0001,124.36,124.29,55.20670817]
[1743377586555,0.0001,124.36,124.31,0.28432314]
[1743377586733,0.0001,124.36,124.32,7.52]
[1743377586935,0.0001,124.36,124.32,54.68110817]
[1743377587835,0.0001,124.36,124.33,8.0431]
[1743377589339,0.0001,124.36,124.32,62.72460817]
[1743377590054,24.3085276,124.36,124.32,62.72460817]
[1743377590257,24.3084276,124.33,124.29,47.16110817]
[1743377590557,0.0001,124.36,124.29,47.16110817]
[1743377590558,24.3084276,124.32,124.29,47.16110817]
[1743377590960,24.3084276,124.33,124.29,55.20660817]
[1743377591336,6.6658,124.35,124.29,55.20660817]
[1743377591540,24.3084276,124.34,124.29,75.32080817]
[1743377592358,24.3084276,124.34,124.29,55.20660817]
[1743377592549,24.3084276,124.33,124.29,55.20660817]
[1743377592864,24.3084276,124.31,124.29,47.16110817]
[1743377593061,24.3084276,124.3,124.29,47.16110817]
[1743377593840,24.3084276,124.31,124.29,55.20670817]
[1743377594556,24.3084276,124.31,124.29,55.23670817]
[1743377594753,24.3084276,124.35,124.29,55.23670817]
[1743377594960,0.0001,124.36,124.3,20.90899514]
[1743377595361,24.3085276,124.36,124.3,20.624672]
[1743377595666,0.0001,124.36,124.31,0.28432314]
[1743377596767,0.0001,124.36,124.32,28.153]
[1743377596953,0.0001,124.36,124.32,75.31410817]
[1743377597365,0.0001,124.36,124.33,18.933972]
[1743377597546,0.0001,124.36,124.35,19.21829514]
[1743377597749,0.0001,124.36,124.35,204.67940331]
[1743377598669,0.0001,124.36,124.35,212.72120331]
[1743377599655,0.0001,124.36,124.35,55.20290817]
[1743377600947,0.0001,124.36,124.35,74.13688017]
[1743377601167,0.0001,124.36,124.35,74.42120331]
[1743377602248,0.0001,124.36,124.35,55.20290817]
[1743377604264,0.0001,124.36,124.33,146.3429]
[1743377604468,24.3085276,124.36,124.33,138.3]
[1743377604671,0.0001,124.36,124.33,138.3]
[1743377605269,0.0001,124.36,124.33,146.343]
[1743377606360,0.0001,124.36,124.34,18.933972]
[1743377606660,0.0001,124.36,124.35,0.28432314]
[1743377607160,0.0001,124.36,124.35,74.13688017]
[1743377607358,0.0001,124.36,124.35,55.20290817]
[1743377608656,0.0001,124.36,124.35,74.42120331]
[1743377609255,0.0001,124.36,124.35,47.16110817]
[1743377609467,0.0001,124.36,124.33,157.233972]
[1743377609673,24.3084276,124.35,124.33,138.3]
[1743377610361,30.4793276,124.34,124.29,55.23650817]
[1743377610568,24.3084276,124.33,124.29,55.23650817]
[1743377610774,30.4793276,124.34,124.29,55.23650817]
[1743377610948,24.3084276,124.34,124.3,18.933972]
[1743377611151,24.3084276,124.34,124.29,55.23650817]
[1743377611347,24.3084276,124.33,124.29,47.19110817]
[1743377611553,24.3084276,124.32,124.29,47.19110817]
[1743377612162,24.3084276,124.31,124.29,47.19110817]
[1743377612478,24.3084276,124.3,124.29,0.03]
[1743377614082,38.5243276,124.3,124.29,0.03]
[1743377614378,20.0,124.27,124.25,0.03]
[1743377614566,44.3084276,124.26,124.25,0.03]
[1743377615458,52.3560276,124.26,124.25,0.03]
[1743377616086,78.1976552,124.26,124.25,0.03]
[1743377617080,53.8892276,124.26,124.25,0.03]
[1743377618173,45.8416276,124.26,124.25,0.03]
[1743377618377,24.3084276,124.26,124.25,0.03]
[1743377619181,24.3084276,124.28,124.25,0.03]
[1743377619361,24.3084276,124.29,124.25,0.03]
[1743377619561,30.4793276,124.3,124.25,0.03]
[1743377619767,24.3084276,124.31,124.26,18.79181043]
[1743377619964,24.3084276,124.31,124.26,47.30326974]
[1743377620369,24.3084276,124.31,124.27,8.0469]
[1743377620679,24.3084276,124.3,124.27,8.0469]
[1743377620883,24.3084276,124.29,124.26,55.20850817]
[1743377621284,24.3084276,124.28,124.25,0.03]
[1743377621668,24.3084276,124.27,124.25,0.03]
[1743377622783,24.3084276,124.26,124.25,0.03]
[1743377624687,48.6168552,124.26,124.25,0.03]
[1743377624880,32.3560276,124.26,124.25,0.03]
[1743377625073,24.3084276,124.26,124.25,0.03]
[1743377626102,24.3084276,124.27,124.25,0.03]
[1743377626308,24.3084276,124.3,124.25,0.03]
[1743377626610,24.3084276,124.31,124.25,47.19110817]
[1743377626897,24.3084276,124.3,124.25,47.19110817]
[1743377627108,24.3084276,124.3,124.26,8.0476]
[1743377628079,24.3084276,124.31,124.26,8.0476]
[1743377628586,24.3084276,124.3,124.26,8.0476]
[1743377629771,14.482,124.33,124.26,8.0476]
[1743377629772,24.3084276,124.31,124.26,8.0476]
[1743377629973,24.3084276,124.3,124.26,8.0476]
[1743377630524,0.063,124.3,124.26,75.32780817]
[1743377630992,0.063,124.3,124.27,19.21829514]
[1743377631290,0.063,124.3,124.28,15.5863]
[1743377631482,0.063,124.3,124.28,62.74740817]
[1743377631880,0.063,124.3,124.29,18.933972]
[1743377632206,0.063,124.3,124.28,62.74740817]
[1743377632990,0.063,124.3,124.28,47.16110817]
[1743377633186,24.3714276,124.3,124.27,8.0467]
[1743377634313,24.3714276,124.3,124.26,8.0473]
[1743377634600,24.3084276,124.29,124.25,0.03]
[1743377634778,24.3714276,124.3,124.25,8.0778]
[1743377636387,0.063,124.3,124.25,28.1985]
[1743377636991,0.063,124.3,124.26,26.473972]
[1743377637386,0.063,124.3,124.27,28.1643]
[1743377638106,0.063,124.3,124.28,18.933972]
[1743377638291,0.063,124.3,124.28,66.09508017]
[1743377638474,0.063,124.3,124.28,204.39508017]
[1743377639099,0.063,124.3,124.28,185.46110817]
[1743377639277,0.063,124.3,124.28,47.16110817]
[1743377639476,0.063,124.3,124.28,55.20730817]
[1743377640901,24.3084276,124.29,124.26,8.0473]
[1743377641402,24.3714276,124.3,124.26,8.0473]
[1743377642099,0.063,124.3,124.26,28.1664]
[1743377642307,0.063,124.3,124.27,26.473972]
[1743377643201,0.063,124.3,124.27,7.54]
[1743377643629,0.063,124.3,124.27,54.70110817]
[1743377644717,0.063,124.3,124.28,8.0463]
[1743377645889,24.3714276,124.3,124.27,62.74800817]
[1743377646099,24.3714276,124.3,124.27,55.20800817]
[1743377646420,0.063,124.3,124.27,55.20800817]
[1743377646627,0.063,124.3,124.27,75.32540817]
[1743377647192,0.063,124.3,124.27,55.20800817]
[1743377648135,0.063,124.3,124.27,75.32540817]
[1743377648504,0.063,124.3,124.27,55.20800817]
[1743377650526,24.3714276,124.3,124.27,47.16110817]
[1743377650724,24.3714276,124.3,124.27,55.20800817]
[1743377651504,24.3084276,124.29,124.27,47.16110817]
[1743377651926,24.3084276,124.29,124.27,55.20800817]
[1743377652535,24.3714276,124.3,124.27,55.20800817]
[1743377652706,0.063,124.3,124.27,55.20800817]
[1743377654125,0.063,124.3,124.28,0.28432314]
[1743377654428,0.063,124.3,124.28,26.473972]
[1743377655124,0.063,124.3,124.29,0.28432314]
[1743377655710,0.063,124.3,124.29,8.32992314]
[1743377656632,0.063,124.3,124.28,8.046]
[1743377656937,0.063,124.3,124.29,0.28432314]
[1743377657113,0.063,124.3,124.29,18.933972]
[1743377657743,0.063,124.3,124.29,26.979572]
[1743377659037,0.063,124.3,124.29,27.26389514]
[1743377659347,0.063,124.3,124.29,74.42500331]
[1743377660614,0.0001,124.36,124.32,19.21829514]
[1743377660813,0.0001,124.36,124.32,204.67930331]
[1743377661851,0.0001,124.36,124.33,8.0431]
[1743377662021,0.0001,124.36,124.34,18.933972]
[1743377663729,0.0001,124.36,124.32,205.85463131]
[1743377663730,24.3084276,124.35,124.32,185.46100817]
[1743377663927,24.3084276,124.35,124.32,47.16100817]
[1743377664134,24.3085276,124.36,124.32,47.16100817]
[1743377666045,24.3084276,124.34,124.32,47.16100817]
[1743377666250,24.3084276,124.33,124.29,66.09498017]
[1743377666550,0.0001,124.36,124.3,0.42648471]
[1743377666755,24.3084276,124.35,124.31,0.14216157]
[1743377667044,24.3084276,124.35,124.31,18.79181043]
[1743377667423,24.3085276,124.36,124.32,0.14216157]
[1743377667621,24.3084276,124.35,124.31,65.9528186]
[1743377667822,24.3084276,124.33,124.31,47.16100817]
[1743377668440,32.3517276,124.33,124.31,47.16100817]
[1743377669948,24.3084276,124.32,124.31,47.16100817]
[1743377670930,24.3084276,124.33,124.31,47.16100817]
[1743377671135,24.3084276,124.32,124.28,185.46100817]
[1743377671444,24.3084276,124.32,124.28,47.16100817]
[1743377671445,24.3084276,124.29,124.28,47.16100817]
[1743377671746,24.3084276,124.3,124.26,26.69714886]
[1743377672128,24.3084276,124.31,124.27,18.933972]
[1743377672458,24.3084276,124.35,124.3,18.933972]
[1743377672638,24.3084276,124.35,124.3,66.09498017]
[1743377672840,0.0001,124.36,124.31,0.28432314]
[1743377674631,0.0001,124.36,124.33,19.21829514]
[1743377674837,0.0001,124.36,124.33,66.37930331]
[1743377676745,0.0001,124.36,124.35,0.28432314]
[1743377677143,0.0001,124.36,124.34,18.79181043]
[1743377678855,0.0001,124.36,124.33,47.30316974]
[1743377680157,0.0001,124.36,124.33,55.34596974]
[1743377680544,0.0001,124.36,124.34,18.933972]
[1743377680965,0.0001,124.36,124.34,26.975972]
[1743377682263,0.0001,124.36,124.34,26.976372]
[1743377682742,0.0001,124.36,124.34,18.933972]
[1743377683654,0.0001,124.36,124.34,26.976272]
[1743377685565,0.0001,124.36,124.34,74.13728017]
[1743377685858,0.0001,124.36,124.35,0.28432314]
[1743377687360,0.0001,124.36,124.35,27.26009514]
[1743377688959,0.0001,124.36,124.35,212.72110331]
[1743377690969,0.0001,124.36,124.35,212.43678017]
[1743377691265,0.0001,124.36,124.35,212.72110331]
[1743377691463,0.0001,124.36,124.35,212.43678017]
[1743377691682,0.0001,124.36,124.35,65.81065703]
[1743377691847,15.1649636,124.36,124.35,47.16100817]
[1743377692150,15.1649636,124.36,124.35,74.13678017]
[1743377692151,0.0001,124.36,124.35,74.13678017]
[1743377692952,0.0001,124.36,124.35,74.42110331]
[1743377693156,0.0001,124.36,124.35,212.43678017]
[1743377693871,15.1649636,124.36,124.35,47.16100817]
[1743377695569,0.0001,124.36,124.35,55.20280817]
[1743377696150,0.0001,124.36,124.35,74.13678017]
[1743377697369,0.0001,124.36,124.35,74.42110331]
[1743377699175,0.0001,124.36,124.35,74.13678017]
[1743377700550,15.1649636,124.36,124.32,185.46100817]
[1743377700754,15.1648636,124.34,124.32,185.46100817]
[1743377700955,15.1648636,124.33,124.32,185.46100817]
[1743377701188,23.2079636,124.33,124.3,0.03]
[1743377701486,15.1648636,124.31,124.3,0.03]
[1743377701655,23.2227636,124.31,124.3,0.03]
[1743377702182,30.3297272,124.26,124.25,0.03]
[1743377703085,15.1648636,124.26,124.25,0.03]
[1743377703668,24.31239022,124.26,124.25,0.03]
[1743377704176,24.31239022,124.27,124.25,0.03]
[1743377704567,24.31239022,124.26,124.25,0.03]
[1743377705159,24.31239022,124.27,124.25,0.03]
[1743377707975,8.0579,124.31,124.25,204.70930331]
[1743377708157,24.31239022,124.33,124.28,0.28432314]
[1743377708356,24.31239022,124.35,124.3,0.28432314]
[1743377709184,24.31239022,124.35,124.31,8.0444]
[1743377710185,24.31239022,124.33,124.31,8.0444]
[1743377710394,24.31239022,124.33,124.3,8.045]
[1743377710689,24.31239022,124.31,124.27,8.0469]
[1743377710984,24.31239022,124.3,124.27,8.0469]
[1743377711183,24.31239022,124.29,124.27,8.0469]
[1743377711782,24.31239022,124.28,124.27,8.0469]
[1743377712484,24.31239022,124.29,124.27,8.0469]
[1743377712787,24.31239022,124.32,124.28,18.933972]
[1743377713101,24.31239022,124.32,124.28,0.28432314]
[1743377713266,24.31239022,124.32,124.29,8.0456]
[1743377713470,24.31239022,124.33,124.29,8.0456]
[1743377714365,6.2076,124.34,124.29,28.1598]
[1743377714568,30.51999022,124.34,124.3,18.933972]
[1743377714772,0.063,124.34,124.3,18.933972]
[1743377715178,24.37539022,124.34,124.3,18.933972]
[1743377715385,24.37539022,124.34,124.31,8.0444]
[1743377715965,24.31239022,124.33,124.31,8.0444]
[1743377717688,24.31239022,124.33,124.3,8.045]
[1743377718965,24.31239022,124.33,124.3,28.1576]
[1743377721167,24.31239022,124.32,124.3,8.045]
[1743377721367,24.31239022,124.33,124.3,8.045]
[1743377721782,24.31239022,124.32,124.3,8.045]
[1743377722086,24.31239022,124.31,124.29,193.50650817]
[1743377722382,24.31239022,124.3,124.29,55.20650817]
[1743377722987,24.31239022,124.3,124.29,47.16100817]
[1743377723697,24.31239022,124.3,124.27,8.0767]
[1743377723870,24.31239022,124.32,124.28,18.933972]
[1743377724066,24.31239022,124.33,124.28,18.933972]
[1743377724283,24.31239022,124.33,124.29,28.1598]
[1743377726094,0.063,124.34,124.3,26.453972]
[1743377726272,0.063,124.34,124.33,18.933972]
[1743377726471,0.063,124.34,124.33,66.37930331]
[1743377728272,0.063,124.34,124.33,74.42240331]
[1743377728982,0.0001,124.34,124.33,74.42240331]
[1743377729190,0.0001,124.34,124.33,212.72240331]
[1743377730982,0.0001,124.34,124.33,81.94240331]
[1743377733594,0.0001,124.34,124.33,220.24240331]
[1743377736399,0.0001,124.34,124.33,224.24562022]
[1743377736596,0.0001,124.36,124.35,86.09488017]
[1743377736796,0.0001,124.41,124.4,0.56864628]
[1743377736983,0.0001,124.41,124.4,213.83890331]
[1743377737178,0.0001,124.43,124.42,0.56864628]
[1743377737391,0.0001,124.43,124.42,39.21829514]
[1743377737786,0.0001,124.43,124.42,47.25549514]
[1743377738880,0.0001,124.43,124.42,219.04190331]
[1743377741104,0.063,124.49,124.46,20.56864628]
[1743377741405,0.063,124.49,124.46,232.19920331]
[1743377743190,0.063,124.49,124.46,240.23390331]
[1743377743379,0.063,124.49,124.48,19.21829514]
[1743377744707,0.063,124.49,124.48,27.25169514]
[1743377745484,0.063,124.49,124.48,212.64960331]
[1743377745897,0.063,124.49,124.48,74.34960331]
[1743377746888,0.063,124.49,124.48,74.06528017]
[1743377748008,0.063,124.49,124.48,47.09790817]
[1743377748401,24.37539022,124.49,124.46,0.14216157]
[1743377748589,24.37539022,124.49,124.46,18.933972]
[1743377748992,24.37539022,124.49,124.45,8.0353]
[1743377750103,24.37539022,124.49,124.44,297.99188017]
[1743377750316,24.31239022,124.47,124.44,47.09790817]
[1743377750990,24.31239022,124.46,124.45,0.03]
[1743377752797,32.34709022,124.46,124.45,0.03]
[1743377753199,24.31239022,124.46,124.45,0.03]
[1743377753604,24.31239022,124.46,124.41,18.933972]
[1743377753910,24.31239022,124.44,124.41,26.971672]
[1743377754305,24.31239022,124.44,124.4,55.13630817]
[1743377758419,24.31239022,124.42,124.4,47.09790817]
[1743377758598,24.31239022,124.41,124.37,286.99820817]
[1743377758804,1.638,124.43,124.37,286.99820817]
[1743377758805,24.31239022,124.4,124.37,286.99820817]
[1743377759010,24.31239022,124.39,124.37,286.99820817]
[1743377759303,24.31239022,124.39,124.37,55.13820817]
[1743377759818,24.31239022,124.39,124.37,47.09790817]
[1743377760608,24.31239022,124.38,124.34,18.933972]
[1743377761213,24.31239022,124.37,124.33,74.75410817]
[1743377761520,24.31239022,124.39,124.34,18.933972]
[1743377762306,24.31239022,124.39,124.34,26.976172]
[1743377763107,24.31239022,124.38,124.34,26.976172]
[1743377763617,24.31239022,124.38,124.34,47.082272]
[1743377764518,24.31239022,124.39,124.34,47.082272]
[1743377764723,30.42969022,124.42,124.35,0.28432314]
[1743377764907,24.31239022,124.4,124.36,18.933972]
[1743377766032,24.31239022,124.41,124.36,18.933972]
[1743377766202,19.07613357,124.45,124.36,18.933972]
[1743377766203,7.7553,124.46,124.4,18.933972]
[1743377766408,24.31239022,124.45,124.4,18.933972]
[1743377766608,24.31239022,124.44,124.4,26.972072]
[1743377768000,24.31239022,124.43,124.4,8.0381]
[1743377768207,24.31239022,124.44,124.4,8.0381]
[1743377768406,24.31239022,124.45,124.4,46.78414886]
[1743377768715,24.31239022,124.44,124.4,26.68774886]
[1743377769111,24.31239022,124.46,124.41,19.21829514]
[1743377769310,24.31239022,124.46,124.41,66.31620331]
[1743377769510,24.31239022,124.44,124.41,47.09790817]
[1743377770108,24.31239022,124.46,124.42,18.933972]
[1743377770639,24.31239022,124.46,124.43,8.0366]
[1743377771233,14.2133,124.49,124.43,8.0366]
[1743377771526,24.31239022,124.45,124.41,47.09790817]
[1743377772114,24.31239022,124.45,124.41,55.13560817]
[1743377773823,24.31239022,124.47,124.42,18.933972]
[1743377774123,6.1803,124.49,124.43,0.28432314]
[1743377774124,0.063,124.49,124.43,0.28432314]
[1743377774342,0.063,124.49,124.45,18.933972]
[1743377774626,24.37539022,124.49,124.45,18.933972]
[1743377774926,24.37539022,124.49,124.46,8.0347]
[1743377775129,24.31239022,124.48,124.45,8.0351]
[1743377775726,15.13988882,124.47,124.43,66.03188017]
[1743377775928,15.13988882,124.46,124.43,55.13420817]
[1743377776508,15.13988882,124.47,124.43,55.13420817]
[1743377776724,15.13988882,124.48,124.45,8.0353]
[1743377776904,15.20288882,124.49,124.45,8.0353]
[1743377777712,24.28535587,124.49,124.45,8.0353]
[1743377778708,0.063,124.49,124.45,8.0353]
[1743377779131,24.28535587,124.49,124.45,8.0353]
[1743377780025,24.28535587,124.49,124.44,8.0358]
[1743377780026,24.22235587,124.47,124.44,8.0358]
[1743377780327,24.22235587,124.48,124.44,8.0358]
[1743377780912,0.063,124.49,124.43,55.13420817]
[1743377780913,24.22235587,124.46,124.43,55.13420817]
[1743377781227,24.22235587,124.45,124.43,47.09790817]
[1743377782135,24.22235587,124.44,124.43,47.09790817]
[1743377782433,8.0342,124.47,124.42,8.037]
[1743377782434,24.22235587,124.45,124.42,8.037]
[1743377784437,24.22235587,124.43,124.4,47.09790817]
[1743377784736,24.22235587,124.42,124.39,8.0389]
[1743377785119,24.22235587,124.44,124.4,18.933972]
[1743377785318,24.22235587,124.47,124.41,7.52]
[1743377785529,24.22235587,124.47,124.42,0.28432314]